Cogmind - Beta 13 X1 @@@ ROGUE MODE // 2023.12.02 @ 11:27:04 Player: Plexion Result: Destroyed by S-10 Pest with Light Assault Rifle Performance ------------- Evolutions (0) 0 Regions Visited (4) 800 Robots Destroyed (16) 80 Value Destroyed (343) 343 Prototype IDs (0) 0 Alien Tech Used (0) 0 Bonus (-20) -20 TOTAL SCORE: 1203 Bonus ------- Friendly Fire -20 Cogmind --------- Core Integrity 0/250 Matter 261/300 Energy 125/125 System Corruption 0% Temperature Cool (0) Movement Treading (160) Location -9/Mines Parts ------- > --- POWER (1) -------- Light Ion Engine > --- PROPULSION (2) --- Light Treads Light Treads > --- UTILITY (2) ------ Large Storage Unit > --- WEAPON (2) ------- Assault Rifle Light Cannon > --- INVENTORY (15) --- Light Nuclear Core Wheel Cesium-ion Thruster Cesium-ion Thruster Cooling System Light Armor Plating Medium Armor Plating Medium Armor Plating Long-range Tractor Beam Improved Trap Extractor (0/6) Shock Rifle Shock Rifle Grenade Launcher Rocket Launcher Mining Laser Peak State ------------ > --- POWER ------------ Light Ion Engine > --- PROPULSION ------- Light Treads Light Treads > --- UTILITY ---------- Large Storage Unit Medium Armor Plating > --- WEAPON ----------- Shock Rifle Shock Rifle > --- INVENTORY -------- Light Ion Engine Light Treads Wheel Cesium-ion Thruster High-capacity Matter Pod Light Armor Plating Medium Armor Plating Medium Armor Plating Medium Armor Plating EM Pulse Gun Small Laser Assault Rifle Light Cannon Grenade Launcher Mining Laser [Rating: 14] Favorites ----------- Power Light Ion Engine Engine Light Ion Engine Propulsion Light Treads Treads Light Treads Utility Large Storage Unit Storage Large Storage Unit Protection Medium Armor Plating Weapon Shock Rifle Energy Gun Shock Rifle Ballistic Gun Assault Rifle Ballistic Cannon Light Cannon Launcher Grenade Launcher Build | -11 -10 -10 -10 -9 ------- Run | Jun Mat Min Exi Min Slots Evolved . | . . . . . Power . | . . . . . Propulsion . | . . . . . Utility . | . . . . . Weapon . | . . . . . Parts Attached 18 | 6 4 3 1 4 Power 2 | 1 . 1 . . Engine 2 | 1 . 1 . . Core . | . . . . . Reactor . | . . . . . Propulsion 3 | 2 . . . 1 Treads 3 | 2 . . . 1 Leg . | . . . . . Wheel . | . . . . . Hover . | . . . . . Flight . | . . . . . Utility 5 | 1 3 . 1 . Device . | . . . . . Storage 3 | 1 2 . . . Processor . | . . . . . Hackware . | . . . . . Protection 2 | . 1 . 1 . Artifact . | . . . . . Weapon 8 | 2 1 2 . 3 Energy Gun 4 | 1 1 2 . . Energy Cannon . | . . . . . Ballistic Gun 2 | 1 . . . 1 Ballistic Cannon 1 | . . . . 1 Launcher 1 | . . . . 1 Special Weapon . | . . . . . Impact Weapon . | . . . . . Slashing Weapon . | . . . . . Piercing Weapon . | . . . . . Special Melee Weapon . | . . . . . Unidentified Prototypes . | . . . . . Parts Lost 4 | . . 2 . 2 Power 1 | . . 1 . . Propulsion 1 | . . . . 1 Utility 2 | . . 1 . 1 Weapon . | . . . . . Highest Loss Streak 2 | . . 2 . 1 To Critical Strikes . | . . . . . Average Slot Usage (%) 94 | . 90 96 85 100 Engine 13 | . 14 13 14 14 Treads 28 | . 28 28 28 28 Storage 14 | . 14 14 14 14 Protection 8 | . 5 10 . 14 Energy Gun 15 | . 14 21 28 3 Ballistic Gun 8 | . 14 6 . 10 Ballistic Cannon 3 | . . . . 10 Naked Turns . | . . . . . Heaviest Build 36 | 12 33 36 36 36 Greatest Support 40 | 40 40 40 40 40 Greatest Overweight (x) . | . . . . . Average Overweight (x) . | . . . . . Largest Inventory Capacity 15 | 8 15 15 15 15 Average Capacity 13 | 7 10 15 15 15 Most Carried 15 | 3 10 15 15 15 Average Carried 12 | 1 6 13 14 14 Final Capacity 15 | 8 15 15 15 15 Final Carried 15 | 2 10 15 14 15 Class Distribution -------------------- 100% | Mutant Dominant Class ---------------- Mutant | -10/Materials Mutant | -10/Mines Mutant | -10/Exiles Mutant | -9/Mines Resources | -11 -10 -10 -10 -9 ----------- Run | Jun Mat Min Exi Min Matter Collected 695 | 215 113 242 . 125 Remotely . | . . . . . Salvage Created 505 | . 185 266 . 54 Parts 36 | . 17 15 . 4 Haulers Intercepted 1 | . 1 . . . Recyclers Shooed 1 | . 1 . . . Parts Field Recycled . | . . . . . Retrieved Matter . | . . . . . Parts Self-Destructed . | . . . . . Prevented . | . . . . . Kills | -11 -10 -10 -10 -9 ------- Run | Jun Mat Min Exi Min Combat Hostiles Destroyed 16 | . . 7 . 9 Guns 8 | . . 7 . 1 Cannons 1 | . . . . 1 AOE 7 | . . . . 7 Classes Destroyed 9 | . 5 1 . 3 Worker 2 | . 1 . . 1 Tunneler 1 | . 1 . . . Hauler 1 | . 1 . . . Recycler 1 | . 1 . . . Watcher 2 | . 2 . . . Swarmer 1 | . . . . 1 Grunt 6 | . . 6 . . Demolisher 1 | . . . . 1 Assembled 7 | . . . . 7 Best Kill Streak 8 | . 2 3 . 8 Combat Bots Only 7 | . . 3 . 7 Max Kills in Single Turn 2 | . 1 1 . 2 Gunslinging . | . . . . . Exploded 2 | . . . . 2 Melee . | . . . . . Uniques/NPCs Destroyed 1 | . . 1 . . YI-UF0 (-10/Mines) Combat | -11 -10 -10 -10 -9 -------- Run | Jun Mat Min Exi Min Damage Taken 1012 | . . 559 . 453 Core 257 | . . 155 . 102 Absorbed by Shields . | . . . . . Core Remaining (%) 100 | 100 . . . . Volleys Fired 52 | . 15 18 3 16 Largest 2 | . 2 2 2 2 Hottest 100 | . 60 100 100 55 Shots Fired 95 | . 30 36 6 23 Gun 79 | . 30 36 6 7 Cannon 7 | . . . . 7 Launcher 9 | . . . . 9 Special . | . . . . . Kinetic 34 | . 15 5 . 14 Thermal 18 | . 13 5 . . Explosive 9 | . . . . 9 Electromagnetic 34 | . 2 26 6 . Robot Hit Streak 7 | . 7 6 . 2 Robot Miss Streak 5 | . 5 1 . 4 Penetration Max . | . . . . . Secondary Targets . | . . . . . Shots Hit Robots 44 | . 16 22 . 6 Core Hits 44 | . 8 13 . 23 Critical Kills 1 | . . . . 1 Critical Parts Destroyed . | . . . . . Critical Strikes 1 | . . . . 1 Destroy 1 | . . . . 1 Melee Attacks . | . . . . . Impact . | . . . . . Slashing . | . . . . . Piercing . | . . . . . Sneak Attacks . | . . . . . Combat Hostiles . | . . . . . Follow-up Attacks . | . . . . . Damage Inflicted 1112 | . 236 353 . 523 Guns 594 | . 205 350 . 39 Cannons 15 | . . . . 15 Explosions 442 | . . . . 442 Melee . | . . . . . Ramming 61 | . 31 3 . 27 Kinetic 221 | . 126 41 . 54 Thermal 122 | . 79 43 . . Explosive 442 | . . . . 442 Electromagnetic 266 | . . 266 . . Impact . | . . . . . Slashing . | . . . . . Piercing . | . . . . . Highest Corruption . | . . . . . Average Corruption . | . . . . . Corruption Purged . | . . . . . Corruption Blocked . | . . . . . Overload Shots . | . . . . . Overflow Damage 14 | . . . . 14 Projectiles . | . . . . . Explosions 14 | . . . . 14 Melee . | . . . . . Knockbacks . | . . . . . Impact . | . . . . . Kinetic . | . . . . . Secondary . | . . . . . Self-Inflicted Damage 26 | . . . . 26 Shots 2 | . . . . 2 Rammed 11 | . 6 1 . 4 Targets Rammed 13 | . 8 1 . 4 Kicked . | . . . . . Crushed 2 | . 2 . . . Highest Temperature 168 | . 18 168 117 50 Average Temperature 53 | . 8 68 59 17 Received Heat Transfer 198 | . . 138 . 60 Siege Activations . | . . . . . Robots Corrupted . | . . . . . Combat Hostiles . | . . . . . Parts Fried . | . . . . . Impact Corruptions . | . . . . . Robots Melted . | . . . . . Combat Hostiles . | . . . . . Parts Melted 1 | . 1 . . . Heat Transferred 275 | . 175 100 . . Parts Sabotaged . | . . . . . Parts Stolen . | . . . . . Parts Stripped . | . . . . . Power Chain Reactions . | . . . . . Missiles Intercepted . | . . . . . Alert | -11 -10 -10 -10 -9 ------- Run | Jun Mat Min Exi Min Peak Influence 140 | . 66 140 . 30 Initial 25 | . . 25 . . Average 28 | . 32 38 . 17 Maximum Alert Level . | . . . . . Low Security (%) 100 | 100 100 100 . 100 Level 1 . | . . . . . Level 2 . | . . . . . Level 3 . | . . . . . Level 4 . | . . . . . Level 5 . | . . . . . High Security . | . . . . . Max Security . | . . . . . Squads Dispatched 1 | . . 1 . . Investigation 1 | . . 1 . . Extermination . | . . . . . Reinforcement . | . . . . . Assault . | . . . . . Garrison . | . . . . . Intercept . | . . . . . Searches Triggered . | . . . . . Construction Impeded . | . . . . . Haulers Reinforced . | . . . . . Active Scanning Responses . | . . . . . Cargo Convoy Interrupts . | . . . . . Stealth | -11 -10 -10 -10 -9 --------- Run | Jun Mat Min Exi Min Distress Signals . | . . . . . Communications Jammed . | . . . . . Distress Signals . | . . . . . Times Spotted 31 | . 8 9 . 14 Peak Tracking Total 9 | . 1 3 . 9 Tactical Retreats 2 | . . 2 . . Traps | -11 -10 -10 -10 -9 ------- Run | Jun Mat Min Exi Min Traps Triggered . | . . . . . Indirectly . | . . . . . Trap Hack Attempts . | . . . . . Triggered . | . . . . . Disarmed . | . . . . . Reprogrammed . | . . . . . Reused . | . . . . . Traps Extracted . | . . . . . Installed . | . . . . . Triggered . | . . . . . Machines | -11 -10 -10 -10 -9 ---------- Run | Jun Mat Min Exi Min Machines Disabled . | . . . . . Max in Single Turn . | . . . . . Machines Repaired . | . . . . . Machines Sabotaged . | . . . . . Overloaded Fab Kills . | . . . . . Hacking | -11 -10 -10 -10 -9 --------- Run | Jun Mat Min Exi Min Machines Accessed 5 | . 3 2 . . Terminals 3 | . 3 . . . Fabricators . | . . . . . Repair Stations . | . . . . . Recycling Units . | . . . . . Scanalyzers . | . . . . . Garrison Access . | . . . . . Total Hacks 14 | . 12 2 . . Successful 6 | . 4 2 . . Failed 7 | . 7 . . . Catastrophic 1 | . 1 . . . Database Lockouts 1 | . 1 . . . Manual 9 | . 9 . . . Terminals 12 | . 12 . . . Fabricators . | . . . . . Repair Stations . | . . . . . Recycling Units . | . . . . . Scanalyzers . | . . . . . Garrison Access . | . . . . . Terminal Hacks 4 | . 2 2 . . Robot Analysis 1 | . 1 . . . Open Door 2 | . . 2 . . Zone Layout 1 | . 1 . . . Fabricator Hacks . | . . . . . Repair Station Hacks . | . . . . . Recycling Unit Hacks . | . . . . . Scanalyzer . | . . . . . Garrison Access Hacks . | . . . . . Unauthorized Hacks 2 | . 2 . . . Terminals 2 | . 2 . . . Disrupt 1 | . 1 . . . Operators 1 | . 1 . . . Fabricators . | . . . . . Repair Stations . | . . . . . Recycling Units . | . . . . . Scanalyzers . | . . . . . Garrison Access . | . . . . . Data Cores Recovered . | . . . . . Used . | . . . . . Hacking Detections 3 | . 3 . . . Full Trace Events . | . . . . . Feedback Events . | . . . . . Feedback Blocked . | . . . . . Robot Schematics Acquired . | . . . . . Robots Built . | . . . . . Authchips . | . . . . . Time . | . . . . . Total Robot Build Rating . | . . . . . Part Schematics Acquired . | . . . . . Parts Built . | . . . . . Authchips . | . . . . . Time . | . . . . . Total Part Build Rating . | . . . . . Parts Repaired . | . . . . . Time . | . . . . . Parts Recycled . | . . . . . Recycled Matter . | . . . . . Retrieved Matter . | . . . . . Retrieved Components . | . . . . . Parts Scanalyzed . | . . . . . Part Schematics Acquired . | . . . . . Parts Damaged . | . . . . . Bothacking | -11 -10 -10 -10 -9 ------------ Run | Jun Mat Min Exi Min Used RIF Installer . | . . . . . Robots Hacked . | . . . . . Non-combat . | . . . . . Combat . | . . . . . Robot Hacks Applied . | . . . . . Relay Couplers Released . | . . . . . Fabnet Peak Effective % . | . . . . . Robots Rewired . | . . . . . Allies Hacked . | . . . . . Hacks Repelled . | . . . . . Allies | -11 -10 -10 -10 -9 -------- Run | Jun Mat Min Exi Min Total Allies 3 | . . 3 . . Largest Group 3 | . . 3 3 3 Highest-Rated Group 40 | . . 40 40 40 Highest-Rated Ally 16 | . . 16 16 16 Total Orders . | . . . . . Ally Attacks 17 | . . . . 17 Total Damage 115 | . . . . 115 Kills 2 | . . . . 2 Allies Corrupted 1 | . . . . 1 Allies Melted . | . . . . . Intel | -11 -10 -10 -10 -9 ------- Run | Jun Mat Min Exi Min Robot Analysis Total 1 | . 1 . . . Derelict Logs Recovered 1 | . . 1 . . Drone Launches . | . . . . . Drone Recoveries . | . . . . . Exploration | -11 -10 -10 -10 -9 ------------- Run | Jun Mat Min Exi Min Turns Passed 3047 | 75 700 865 478 929 Spaces Moved 1656 | 43 386 481 293 453 Core 4 | 4 . . . . Treads 1652 | 39 386 481 293 453 Legs . | . . . . . Wheels . | . . . . . Hover . | . . . . . Flight . | . . . . . Fastest Speed 50 | 50 160 160 160 160 Average Speed 159 | 149 160 160 160 160 Slowest Speed 160 | 160 160 160 160 160 Overloaded Moves . | . . . . . Propulsion Burnouts . | . . . . . Robots Hopped . | . . . . . Cave-ins Triggered . | . . . . . Exploration Rate (%) 61 | 5 50 93 75 86 Regions Visited 4 Branch Regions 3 Pre-discovered Areas 1 | . . 1 . . Known Exits Taken . | . . . . . Unknown Exits Taken 4 | 1 1 1 1 . Scrap Searched 2 | . . 1 . 1 Spaces Dug 4 | . . . . 4 Terrain Destroyed 43 | . . . . 43 Melee . | . . . . . Projectile . | . . . . . AOE 43 | . . . . 43 Terrain Rammed . | . . . . . Walls Destroyed . | . . . . . Machines Disabled . | . . . . . Actions | -11 -10 -10 -10 -9 --------- Run | Jun Mat Min Exi Min Total 1950 | 51 433 540 296 630 Wait 187 | . 10 26 . 151 Move 1652 | 42 385 480 292 453 Hop . | . . . . . Pick Up 22 | 3 8 9 . 2 Fast Attach 7 | 5 2 . . . Attach 4 | 1 . 1 1 1 Detach 1 | . 1 . . . Swap 7 | . 2 2 . 3 Drop 5 | . 2 3 . . Fire 52 | . 15 18 3 16 Melee . | . . . . . Ram . | . . . . . Kick . | . . . . . Crush 13 | . 8 1 . 4 Escape Stasis . | . . . . . Rewire . | . . . . . Trap . | . . . . . Miscellaneous . | . . . . . Route ------- -11/Junkyard -10/Materials (discovered 2 exits: [*Mat] / *Min) -10/Mines (discovered 4 exits: [*Mat x2] / [*Exi] / [*Sub]) -10/Exiles -9/Mines (discovered 1 exit: [*Mat]) History --------- Turn | Location | Event 55 | -11/Junkyard | Discovered new exit (range 12) 76 | -11/Junkyard | Entered Materials 155 | -10/Materials | Central database locked down 317 | -10/Materials | Build established: Mutant 549 | -10/Materials | Discovered new exit (range 11) 687 | -10/Materials | Discovered new exit (range 8) 776 | -10/Materials | Entered Mines 855 | -10/Mines | Discovered new exit (range 6) 1097 | -10/Mines | Met a Derelict shopkeep closing up shop 1234 | -10/Mines | Discovered new exit (range 9) 1235 | -10/Mines | Discovered new exit (range 15) 1258 | -10/Mines | Learned location of Storage (-8) 1445 | -10/Mines | Core integrity fell below 50% 1450 | -10/Mines | Destroyed YI-UF0 1466 | -10/Mines | Assisted by bots powering up and referring to "LRC-V3" 1518 | -10/Mines | Met a Derelict who couldn't figure out how to use a Trap Extractor 1633 | -10/Mines | Deemed a non-threat by the Exiles lab entrance 1634 | -10/Mines | Discovered new exit (range 5) 1641 | -10/Mines | Entered Exiles 1641 | -10/Exiles | Found Exiles lab abandoned 1641 | -10/Exiles | Accompanied by 3 allies 2105 | -10/Exiles | Discovered new exit (range 10) 2119 | -10/Exiles | Entered Mines 2119 | -9/Mines | Accompanied by 3 allies 2135 | -9/Mines | Assembled infested the area 2163 | -9/Mines | Core integrity fell below 20% 2190 | -9/Mines | Destroyed 7 combat bots 2408 | -9/Mines | Received a Rocket Launcher from a helpful Derelict 3029 | -9/Mines | Discovered new exit (range 9) 3048 | -9/Mines | Destroyed by S-10 Pest with Light Assault Rifle Last Messages --------------- 02665_ D-53 Grenadier suffers critical hit (Destroy). 02665_ D-53 Grenadier destroyed. 02666_ The unstable cave ceiling collapses. 02676_ Acquired 14 matter. 02680_ The unstable cave ceiling collapses. 02725_ Slammed into K-01 Serf. 02729_ Slammed into T-07 Excavator. 02750_ U-05 Engineer builds a Wall. 02833_ Acquired 8 matter. 02866_ Searching scrap... 02866_ Found Cooling System. 02866_ Found 25 Matter. 02867_ Acquired 25 matter. 02878_ T-07 Excavator is excavating. 02898_ Acquired Cooling System. 02955_ K-01 Serf collects debris. 02986_ Acquired 43 matter. 03029_ EXIT=FOUND 03042_ Med. Armor Plating destroyed. 03045_ S-10 Pest destroyed. Map ----- +----------------------------------------------------+ | ##??# #?# #??????? | | ##??# ##?# ## #??????? | | #### #??# ## #??????? | | ## #### ## #??????? | | ## #??????? | | ## #??????? | | ## ########## #??????? | | #### #????????# #??????? | | ##??##### ##????????# #??????? | | ##???????####?????????# ##?????? | | #????????????????????## ##????? | | ##?????????????????### #????? | | ##???????????????## #????? | | #???????????????# #????? | | #???????????????## ##????? | | ##????????????????## ##?????? | | ###??????????????????## ##?????? | | ??????????????????????# ##????? | | ??????????????????????# ##???? | | ??????????????????????## #???? | | ??????????????##???????## #???? | | ????????????### ??????# #???? | | ???????????## ##### % #???? | | ???????????# s ##??? | | ??????? ss[ #??? | | ???????$ ####@ #??? | | ????????##### ???## ##??? | | #???????????# ?????####???? | | ##?????????# ?????????????? | | #???????? ??????????????? | | #???????